Cogmind - Beta 11.1 @@@ ROGUE MODE // 2022.10.07 @ 12:28:59 Player: Pogmind Result: Self-destructed Performance ------------- Evolutions (0) 0 Regions Visited (4) 800 Robots Destroyed (29) 145 Value Destroyed (560) 560 Prototype IDs (25) 500 Alien Tech Used (0) 0 Bonus (339) 339 TOTAL SCORE: 2344 Bonus ------- Follower Combat Kills 39 Aligned with FarCom 300 Cogmind --------- Core Integrity 78/250 Matter 226/300 Energy 220/250 System Corruption 0% Temperature Cool (0) Movement Treading (240) Ox1 Location -9/Mines Parts ------- > --- POWER (1) -------- Ion Engine > --- PROPULSION (2) --- Light Treads Light Treads > --- UTILITY (2) ------ High-capacity Storage Unit Core Shielding > --- WEAPON (2) ------- Autogun Autogun > --- INVENTORY (20) --- Light Nuclear Core Light Treads Light Treads Wheel Wheel Cooling System Humpback Modified TNC Light Armor Plating Light Armor Plating Guided Plasma Cannon Autogun Autogun Grenade Launcher Rocket Launcher Hammer Deploy-a-Sentry Deploy-a-Sentry Deploy-a-Sentry Peak State ------------ > --- POWER ------------ Ion Engine > --- PROPULSION ------- Light Treads Light Treads > --- UTILITY ---------- High-capacity Storage Unit Core Shielding > --- WEAPON ----------- Autogun Autogun > --- INVENTORY -------- Nuclear Core Light Fission Core Light Fission Core Wheel Wheel Cooling System Humpback Modified TNC Light Armor Plating Guided Plasma Cannon Autogun Autogun Grenade Launcher Rocket Launcher Hammer Deploy-a-Sentry Deploy-a-Sentry Deploy-a-Sentry [Rating: 15] Favorites ----------- Power Ion Engine Engine Ion Engine Propulsion Light Treads Treads Light Treads Wheel Wheel Utility Core Shielding Device Seismic Detector Storage Large Storage Unit Protection Core Shielding Weapon Autogun Energy Gun EM Pulse Gun Ballistic Gun Autogun Launcher Grenade Launcher Impact Weapon Hammer Build | -11 -10 -10 -10 -9 ------- Run | Scr Mat Min Exi Min Slots Evolved . | . . . . . Power . | . . . . . Propulsion . | . . . . . Utility . | . . . . . Weapon . | . . . . . Parts Attached 33 | 9 17 2 3 2 Power 3 | 1 2 . . . Engine 3 | 1 2 . . . Core . | . . . . . Reactor . | . . . . . Propulsion 10 | 2 4 . 2 2 Treads 7 | 2 3 . . 2 Leg . | . . . . . Wheel 3 | . 1 . 2 . Hover . | . . . . . Flight . | . . . . . Utility 8 | 3 4 . 1 . Device 3 | 2 1 . . . Storage 4 | 1 2 . 1 . Processor . | . . . . . Hackware . | . . . . . Protection 1 | . 1 . . . Artifact . | . . . . . Weapon 12 | 3 7 2 . . Energy Gun 2 | 1 1 . . . Energy Cannon . | . . . . . Ballistic Gun 7 | 2 4 1 . . Ballistic Cannon . | . . . . . Launcher 2 | . 1 1 . . Special Weapon . | . . . . . Impact Weapon 1 | . 1 . . . Slashing Weapon . | . . . . . Piercing Weapon . | . . . . . Special Melee Weapon . | . . . . . Unidentified Prototypes . | . . . . . Parts Lost 5 | . 5 . . . Power 1 | . 1 . . . Propulsion 1 | . 1 . . . Utility 1 | . 1 . . . Weapon 2 | . 2 . . . Highest Loss Streak 5 | . 5 . . . To Critical Strikes . | . . . . . Average Slot Usage (%) 99 | . 98 100 100 100 Engine 13 | . 13 14 14 14 Treads 26 | . 25 28 27 14 Storage 14 | . 14 14 14 14 Protection 13 | . 11 14 14 14 Ballistic Gun 26 | . 24 28 28 28 Naked Turns . | . . . . . Heaviest Build 52 | 15 32 32 52 . Greatest Support 40 | 40 40 40 40 . Greatest Overweight (x) 2 | . 1 . 2 . Average Overweight (x) . | . . . . . Largest Inventory Capacity 20 | 8 15 15 20 20 Average Capacity 14 | 7 11 15 18 20 Most Carried 20 | 5 14 15 20 20 Average Carried 13 | 3 9 14 17 20 Final Capacity 20 | 8 15 15 20 20 Final Carried 20 | 4 14 15 20 20 Class Distribution -------------------- 100% | Mutant Dominant Class ---------------- Mutant | -10/Materials Mutant | -10/Mines Mutant | -10/Exiles Mutant | -9/Mines Resources | -11 -10 -10 -10 -9 ----------- Run | Scr Mat Min Exi Min Matter Collected 1012 | 313 661 38 . . Remotely . | . . . . . Salvage Created 860 | 171 635 54 . . Parts 52 | 7 43 2 . . Haulers Intercepted 2 | . 2 . . . Recyclers Shooed 1 | . . 1 . . Parts Field Recycled . | . . . . . Retrieved Matter . | . . . . . Parts Self-Destructed . | . . . . . Prevented . | . . . . . Kills | -11 -10 -10 -10 -9 ------- Run | Scr Mat Min Exi Min Combat Hostiles Destroyed 17 | . 16 1 . . Guns 14 | . 13 1 . . AOE 3 | . 3 . . . Classes Destroyed 8 | 2 5 1 . . Worker 1 | . . 1 . . Builder 2 | . 2 . . . Tunneler 3 | 3 . . . . Hauler 2 | . 2 . . . Recycler 1 | 1 . . . . Watcher 3 | . 3 . . . Swarmer 6 | . 6 . . . Grunt 11 | . 10 1 . . Best Kill Streak 6 | 3 6 1 . . Combat Bots Only 5 | . 5 1 . . Max Kills in Single Turn 2 | 1 2 1 . . Gunslinging 1 | . 1 . . . Exploded 1 | . 1 . . . Melee . | . . . . . Uniques/NPCs Destroyed . | . . . . . Combat | -11 -10 -10 -10 -9 -------- Run | Scr Mat Min Exi Min Damage Taken 933 | . 933 . . . Core 172 | . 172 . . . Absorbed by Shields . | . . . . . Redirected to Shielding 7 | . 7 . . . Regen/Repaired (Parts) 123 | . 123 . . . Core Remaining (%) 100 | 100 . . . . Volleys Fired 67 | 8 55 1 3 . Largest 2 | 2 2 2 2 . Hottest 60 | 40 60 46 46 . Shots Fired 125 | 16 101 2 6 . Gun 122 | 16 98 2 6 . Cannon . | . . . . . Launcher 3 | . 3 . . . Special . | . . . . . Kinetic 115 | 16 91 2 6 . Thermal . | . . . . . Explosive 3 | . 3 . . . Electromagnetic 7 | . 7 . . . Robot Hit Streak 11 | 4 11 4 . . Robot Miss Streak 4 | 2 4 . . . Penetration Max . | . . . . . Secondary Targets 5 | . 5 . . . Max Gunslinging Chain 1 | . 1 . . . Shots Hit Robots 84 | 10 72 2 . . Core Hits 41 | 5 32 4 . . Critical Kills 1 | . 1 . . . Critical Parts Destroyed . | . . . . . Critical Strikes 1 | . 1 . . . Destroy 1 | . 1 . . . Melee Attacks 8 | . 8 . . . Impact 8 | . 8 . . . Slashing . | . . . . . Piercing . | . . . . . Sneak Attacks 2 | . 2 . . . Combat Hostiles . | . . . . . Follow-up Attacks . | . . . . . Damage Inflicted 1455 | 138 1276 41 . . Guns 1072 | 138 904 30 . . Cannons . | . . . . . Explosions 264 | . 264 . . . Melee 108 | . 108 . . . Ramming 11 | . . 11 . . Kinetic 983 | 138 815 30 . . Thermal . | . . . . . Explosive 264 | . 264 . . . Electromagnetic 89 | . 89 . . . Impact 108 | . 108 . . . Slashing . | . . . . . Piercing . | . . . . . Highest Corruption . | . . . . . Average Corruption . | . . . . . Corruption Purged . | . . . . . Corruption Blocked . | . . . . . Overload Shots . | . . . . . Overflow Damage 41 | . 41 . . . Projectiles . | . . . . . Explosions 13 | . 13 . . . Melee 28 | . 28 . . . Knockbacks 1 | . 1 . . . Impact 1 | . 1 . . . Kinetic . | . . . . . Secondary . | . . . . . Self-Inflicted Damage . | . . . . . Shots . | . . . . . Rammed 3 | . . 3 . . Targets Rammed 4 | . . 4 . . Kicked . | . . . . . Crushed 1 | . . 1 . . Highest Temperature 49 | . 49 6 6 . Average Temperature 15 | . 16 4 4 . Received Heat Transfer 501 | . 501 . . . Siege Activations . | . . . . . Robots Corrupted . | . . . . . Combat Hostiles . | . . . . . Parts Fried 3 | . 3 . . . Impact Corruptions 2 | . 2 . . . Robots Melted . | . . . . . Combat Hostiles . | . . . . . Parts Melted . | . . . . . Heat Transferred . | . . . . . Parts Sabotaged . | . . . . . Parts Stolen . | . . . . . Parts Stripped . | . . . . . Power Chain Reactions . | . . . . . Missiles Intercepted . | . . . . . Alert | -11 -10 -10 -10 -9 ------- Run | Scr Mat Min Exi Min Peak Influence 366 | 20 366 117 . . Initial 21 | . 13 21 . . Average 103 | 8 192 15 . . Maximum Alert Level 1 | . 1 . . . Low Security (%) 72 | 100 45 100 . 100 Level 1 27 | . 54 . . . Level 2 . | . . . . . Level 3 . | . . . . . Level 4 . | . . . . . Level 5 . | . . . . . High Security . | . . . . . Max Security . | . . . . . Squads Dispatched 3 | . 3 . . . Investigation 3 | . 3 . . . Extermination . | . . . . . Reinforcement . | . . . . . Assault . | . . . . . Garrison . | . . . . . Intercept . | . . . . . Searches Triggered . | . . . . . Construction Impeded . | . . . . . Haulers Reinforced . | . . . . . Active Scanning Responses . | . . . . . Cargo Convoy Interrupts . | . . . . . Stealth | -11 -10 -10 -10 -9 --------- Run | Scr Mat Min Exi Min Distress Signals . | . . . . . Communications Jammed . | . . . . . Distress Signals . | . . . . . Times Spotted 26 | . 22 4 . . Peak Tracking Total 9 | . 5 2 9 . Tactical Retreats 1 | . 1 . . . Traps | -11 -10 -10 -10 -9 ------- Run | Scr Mat Min Exi Min Traps Triggered 2 | . 2 . . . Indirectly . | . . . . . Trap Hack Attempts . | . . . . . Triggered . | . . . . . Disarmed . | . . . . . Reprogrammed . | . . . . . Reused . | . . . . . Traps Extracted . | . . . . . Installed . | . . . . . Triggered . | . . . . . Machines | -11 -10 -10 -10 -9 ---------- Run | Scr Mat Min Exi Min Machines Disabled 4 | . . 1 3 . Max in Single Turn 1 | . . . 1 . Machines Sabotaged . | . . . . . Garrisons Compromised . | . . . . . Overloaded Fab Kills . | . . . . . Hacking | -11 -10 -10 -10 -9 --------- Run | Scr Mat Min Exi Min Machines Accessed 13 | . 11 . 2 . Terminals 8 | . 8 . . . Fabricators . | . . . . . Repair Stations 1 | . 1 . . . Recycling Units 2 | . 2 . . . Scanalyzers . | . . . . . Garrison Access . | . . . . . Total Hacks 33 | . 31 . 2 . Successful 22 | . 20 . 2 . Failed 10 | . 10 . . . Catastrophic . | . . . . . Database Lockouts 1 | . 1 . . . Manual 19 | . 18 . 1 . Terminals 25 | . 25 . . . Fabricators . | . . . . . Repair Stations 2 | . 2 . . . Recycling Units 4 | . 4 . . . Scanalyzers . | . . . . . Garrison Access . | . . . . . Terminal Hacks 14 | . 12 . 2 . Record 1 | . . . 1 . Part Schematic 1 | . 1 . . . Robot Analysis 3 | . 3 . . . Prototype ID Bank 1 | . 1 . . . Branch Access Points 1 | . 1 . . . Alert Level 1 | . 1 . . . Locate Traps 1 | . 1 . . . Hauler Manifests 2 | . 2 . . . Registered Components 1 | . 1 . . . Zone Layout 1 | . 1 . . . EX-Prototype ID Bank 1 | . . . 1 . Fabricator Hacks . | . . . . . Repair Station Hacks 2 | . 2 . . . Scan Component 1 | . 1 . . . Repair 1 | . 1 . . . Recycling Unit Hacks . | . . . . . Scanalyzer . | . . . . . Garrison Access Hacks . | . . . . . Unauthorized Hacks 6 | . 6 . . . Terminals 4 | . 4 . . . Botnet 2 | . 2 . . . Detonate 1 | . 1 . . . Operators 1 | . 1 . . . Fabricators . | . . . . . Repair Stations . | . . . . . Recycling Units 2 | . 2 . . . Tunnel 2 | . 2 . . . Scanalyzers . | . . . . . Garrison Access . | . . . . . Data Cores Recovered . | . . . . . Used . | . . . . . Hacking Detections 7 | . 7 . . . Full Trace Events . | . . . . . Feedback Events . | . . . . . Feedback Blocked . | . . . . . Robot Schematics Acquired . | . . . . . Robots Built . | . . . . . Authchips . | . . . . . Time . | . . . . . Total Robot Build Rating . | . . . . . Part Schematics Acquired 1 | . 1 . . . Parts Built . | . . . . . Authchips . | . . . . . Time . | . . . . . Total Part Build Rating . | . . . . . Parts Repaired 1 | . 1 . . . Time 26 | . 26 . . . Parts Recycled . | . . . . . Recycled Matter . | . . . . . Retrieved Matter . | . . . . . Retrieved Components . | . . . . . Parts Scanalyzed . | . . . . . Part Schematics Acquired . | . . . . . Parts Damaged . | . . . . . Bothacking | -11 -10 -10 -10 -9 ------------ Run | Scr Mat Min Exi Min Used RIF Installer . | . . . . . Robots Hacked . | . . . . . Non-combat . | . . . . . Combat . | . . . . . Robot Hacks Applied . | . . . . . Relay Couplers Released . | . . . . . Fabnet Peak Effective % . | . . . . . Robots Rewired . | . . . . . Allies Hacked . | . . . . . Hacks Repelled . | . . . . . Allies | -11 -10 -10 -10 -9 -------- Run | Scr Mat Min Exi Min Total Allies 5 | . . 5 . . Largest Group 4 | . . 4 4 2 Highest-Rated Group 73 | . . 73 73 32 Highest-Rated Ally 31 | . . 31 31 16 Total Orders 2 | . . . 2 . STAY 1 | . . . 1 . FOLLOW 1 | . . . 1 . Ally Attacks 11 | . . 11 . . Total Damage 119 | . . 119 . . Kills 3 | . . 3 . . Allies Corrupted . | . . . . . Allies Melted . | . . . . . Intel | -11 -10 -10 -10 -9 ------- Run | Scr Mat Min Exi Min Robot Analysis Total 3 | . 3 . . . Derelict Logs Recovered 1 | . . 1 . . Drone Launches . | . . . . . Drone Recoveries . | . . . . . Exploration | -11 -10 -10 -10 -9 ------------- Run | Scr Mat Min Exi Min Turns Passed 4750 | 154 1623 1483 1485 5 Spaces Moved 2648 | 71 930 911 736 . Core 2 | 2 . . . . Treads 2404 | 69 718 911 706 . Legs . | . . . . . Wheels 242 | . 212 . 30 . Hover . | . . . . . Flight . | . . . . . Fastest Speed 50 | 50 80 160 110 . Average Speed 164 | 156 144 160 197 . Slowest Speed 240 | 160 160 160 240 . Overloaded Moves . | . . . . . Propulsion Burnouts . | . . . . . Robots Hopped . | . . . . . Cave-ins Triggered . | . . . . . Exploration Rate (%) 55 | 4 99 99 70 6 Regions Visited 4 Branch Regions 3 Pre-discovered Areas 4 | . 2 1 1 . Known Exits Taken 1 | . 1 . . . Unknown Exits Taken 3 | 1 . 1 1 . Scrap Searched 2 | . . 2 . . Spaces Dug 3 | . 3 . . . Terrain Destroyed 14 | . 14 . . . Melee 3 | . 3 . . . Projectile . | . . . . . AOE 11 | . 11 . . . Terrain Rammed . | . . . . . Walls Destroyed . | . . . . . Machines Disabled . | . . . . . Actions | -11 -10 -10 -10 -9 --------- Run | Scr Mat Min Exi Min Total 2898 | 95 1100 933 766 4 Wait 86 | 2 69 11 2 2 Move 2644 | 70 929 910 735 . Hop . | . . . . . Pick Up 35 | 3 16 3 13 . Fast Attach 14 | 9 5 . . . Attach 4 | . 4 . . . Detach 2 | 2 . . . . Swap 15 | . 8 2 3 2 Drop 19 | 1 6 2 10 . Fire 67 | 8 55 1 3 . Melee 8 | . 8 . . . Ram . | . . . . . Kick . | . . . . . Crush 4 | . . 4 . . Escape Stasis . | . . . . . Rewire . | . . . . . Trap . | . . . . . Miscellaneous . | . . . . . Route ------- -11/Scrapyard -10/Materials (discovered 5 exits: [*Mat x3] / *Min x2) -10/Mines (discovered 3 exits: [*Mat x2] / *Exi) -10/Exiles (discovered 2 exits: [*Min x2]) -9/Mines History --------- Turn | Location | Event 108 | -11/Scrapyard | Discovered new exit (range 15) 155 | -11/Scrapyard | Entered Materials 285 | -10/Materials | Core integrity fell below 50% 309 | -10/Materials | Lost 5 parts (1p1n1u2w) 315 | -10/Materials | Build established: Mutant 372 | -10/Materials | Discovered new exit (range 15) 440 | -10/Materials | Discovered new exit (range 16) 456 | -10/Materials | Discovered new exit (range 14) 751 | -10/Materials | Discovered new exit (range 16) 864 | -10/Materials | Central database locked down 871 | -10/Materials | Identified exit to Mines 1011 | -10/Materials | Repaired Lgt. Treads 1044 | -10/Materials | Discovered new exit (range 11) 1778 | -10/Materials | Entered Mines 1809 | -10/Mines | Assisted by bots powering up and referring to "LRC-V3" 1859 | -10/Mines | Received a Rocket Launcher from a helpful Derelict 2346 | -10/Mines | Learned location of Storage (-7) 2372 | -10/Mines | Deemed a non-threat by the Exiles lab entrance 2374 | -10/Mines | Discovered new exit (range 5) 2508 | -10/Mines | Found a hidden stash of uninstalled traps 2523 | -10/Mines | Discovered new exit (range 7) 2588 | -10/Mines | Discovered new exit (range 7) 3261 | -10/Mines | Entered Exiles 3261 | -10/Exiles | Accompanied by 4 allies 3291 | -10/Exiles | Led the pair of lost Derelicts to a safe place 3301 | -10/Exiles | Met 8R-AWN 3327 | -10/Exiles | Met EX-HEX 3388 | -10/Exiles | Met EX-DEC 3401 | -10/Exiles | Learned location of Zion (-6) 3634 | -10/Exiles | Met EX-BIN 3657 | -10/Exiles | Aligned with FarCom system 3658 | -10/Exiles | Given EX-Vault access code 3698 | -10/Exiles | Opened EX-Vault 3741 | -10/Exiles | Warned to stay clear of 0b10 Research branches 3997 | -10/Exiles | Found Modified TNC 4005 | -10/Exiles | Found Gui. Plasma Cannon 4011 | -10/Exiles | Found Deploy-a-Sentry 4014 | -10/Exiles | Found Deploy-a-Sentry 4018 | -10/Exiles | Found Deploy-a-Sentry 4228 | -10/Exiles | Discovered new exit (range 14) 4576 | -10/Exiles | Discovered new exit (range 10) 4718 | -10/Exiles | Attacked by the Exiles 4746 | -10/Exiles | Stole three prototypes: Modified TNC, Gui. Plasma Cannon, Deploy-a-Sentry 4746 | -10/Exiles | Entered Mines 4746 | -9/Mines | Accompanied by 2 allies 4751 | -9/Mines | Self-destructed Last Messages --------------- 04005_ Acquired Gui. Plasma Cannon. 04011_ Acquired Deploy-a-Sentry. 04228_ EXIT=FOUND 04232_ Dropped Lgt. Armor Plating. 04233_ Dropped Lgt. Nuclear Core. 04233_ Dropped Lgt. Treads. 04244_ Acquired Rigged Nuclear Core. 04257_ Acquired Rigged Lgt. Fission Core. 04300_ Dropped Rigged Nuclear Core. 04303_ Dropped Rigged Lgt. Fission Core. 04325_ Acquired Lgt. Treads. 04329_ Acquired Lgt. Armor Plating. 04332_ Acquired Lgt. Nuclear Core. 04335_ Acquired Lgt. Treads. 04576_ EXIT=FOUND 04665_ Machine disabled. 04718_ EXILES: Hostile robot within lab perimeter. Defensive protocols time, folks! LOCATION=UNKNOWN GOAL=ESCAPE Map ----- +----------------------------------------------------+ | ?????????????????????????????????????????? | | ?????????????????????????????????????????? | | ?????????????????????????????????????????? | | ?????????????????????????????????????????? | | ?????????????????????????????????????????? | | ?????????????????????????????????????????? | | ?????????????????????????????????????????? | | ?????????????????????????????????????????? | | ?????????????????????????????????????????? | | ?????????????????????????????????????????? | | ?????????????????????????????????????????? | | ?????????????????????????????????????????? | | ?????????????????????????????????????????? | | ?????????????????????????????????????????? | | ?????????????????????????????????????????? | | ?????????????????????????????????????????? | | ????????????????????###??????????????????? | | ???????????????????# ##?????#???????????? | | ??????????????????# ##?? #???????????? | | ????????????????## ## ????????????? | | ????????????????# t ??????????????? | | ???????????????## t ????????????????? | | ??????????????## #?????????????????? | | ?????????????## #??????????????????? | | ??????????#### g #???????????????????? | | ??????????# @ #????????????????????? | | ?????# g ##????????????????????? | | ????# #?????????????????????? | | ????# ### #?????????????????????? | | ????##?????## ##?????????????????????? | | ????????????# ##??????????????????????? | | ????????????## #????????????????????????? | | ?????????????###?????????????????????????? | | ?????????????????????????????????????????? | | ?????????????????????????????????????????? | | ?????????????????????????????????????????? | | ?????????????????????????????????????????? | | ?????????????????????????????????????????? | | ?????????????????????????????????????????? | | ?????????????????????????????????????????? | | ?????????????????????????????????????????? | | ?????????????????????????????????????????? | | ?????????????????????????????????????????? | | ?????????????????????????????????????????? | | ?????????????????????????????????????????? | | ?????????????????????????????????????????? | | ?????????????????????????????????????????? | | ?????????????????????????????????????????? | | ?????????????????????????????????????????? | | ?????????????????????????????????????????? | +----------------------------------------------------+ Best States ------------- Heat Dissipation 39 Energy Generation 10 Energy Capacity 250 Matter Stores 300 Matter Capacity 300 Sight Range 16 Terrain Scan Density 10 Core Shielding 20 Evasion (%) 44 Recoil Reduction 2 Item Schematics ----------------- Signal Interpreter | -10/Materials | Hacked Robot Schematics ------------------ None Fabricated ------------ Nothing Alien Tech Used ----------------- None Achievements -------------- None Challenges ------------ None Game ------ Seed WeldingThermalNanosword Manual? 0 Play Time 00:19:53 Cumulative 547.7 hours Start 2022.10.06 @ 23:44:43 End 2022.10.07 @ 12:28:59 Sessions 2 Manual Loads 0 Difficulty Rogue Special Mode None Game No. 54 Rogue 44 Adventurer 5 Explorer 5 Win Type - Total 22 Types 6/5/4/0/3/1/2/0/1 Lore% 86 Gallery% 93 Achievement% 83 Wizard Run 0 Options --------- ASCII 0 Keyboard 1 Movement Arrows Keybinds 0 Fullscreen 2 Font 18/SmallcapsGlow Map View 76x50 Tactical HUD 1 Map Filters NONE Filters NONE Steam 1 RUN: 2014e2c2-051d-492a-8013-8cae2fe48f7f